lending/lending_fUSD_20240721
["ID","MTS","AMOUNT","RATE_DAILY","PERIOD"]
[332859843,1721591443334,-340.6425241,0.000119,2]
[332859846,1721591443346,-1357.70720041,0.000119,2]
[332859848,1721591443358,-791.68781801,0.000119,2]
[332859850,1721591443375,-451.88977681,0.000119,2]
[332859853,1721591443386,-42599.25499493,0.000119,2]
[332859855,1721591443398,-8005.5,0.000119,2]
[332859857,1721591443411,-396.11489439,0.000119,2]
[332859859,1721591443424,-674300.66278734,0.000119,2]
[332860090,1721591445962,-766084.42581976,0.000119,2]
[332860092,1721591445975,-429.75631163,0.000119,2]
[332860094,1721591445986,-408.48752001,0.000119,2]
[332860098,1721591446019,-71778.85144141,0.000119,2]
[332860100,1721591446034,-363141.7782589,0.000119,2]
[332860105,1721591446076,-304.97,0.000119,2]
[332860107,1721591446087,-471655.38643377,0.000119,2]
[332860110,1721591446099,-234869.7369746,0.000119,2]
[332860112,1721591446110,-3399.39625553,0.000119,2]
[332860115,1721591446133,-22689.94038409,0.000119,2]
[332860117,1721591446144,-629.27928532,0.000119,2]
[332860119,1721591446155,-504.49,0.000119,2]
[332860122,1721591446167,-1696.18236,0.000119,2]
[332860124,1721591446177,-12006.86003465,0.000119,2]
[332860126,1721591446189,-2196.9196819,0.000119,2]
[332860128,1721591446200,-450.59466083,0.000119,2]
[332860131,1721591446212,-1184.13996,0.000119,2]
[332860133,1721591446228,-2032.77,0.000119,2]
[332860135,1721591446239,-1692.20876631,0.000119,2]
[332860137,1721591446250,-1532.24105838,0.000119,2]
[332860140,1721591446263,-281.0,0.000119,2]
[332860142,1721591446274,-1265.18101471,0.000119,2]
[332860144,1721591446290,-2839.5066876,0.000119,2]
[332860146,1721591446301,-33657.33862308,0.000119,2]
[332860161,1721591446441,-83524.18635659,0.000119,2]
[332860162,1721591446452,-439.48896357,0.000119,2]
[332860164,1721591446463,-882.1746128,0.000119,2]
[332860166,1721591446473,-622.22852932,0.000119,2]
[332860168,1721591446489,-279.87940915,0.000119,2]
[332860328,1721591500983,489.77,0.00025,110]
[332860329,1721591515120,151.0,0.00019734,120]
[332860330,1721591600962,500.0,0.00025,110]
[332860331,1721591629477,500.0,0.00025,110]
[332860332,1721591749736,500.0,0.00025,110]
[332860333,1721591820678,500.0,0.00025,110]
[332860334,1721591842936,500.0,0.00025,110]
[332860335,1721591940551,500.0,0.00025,110]
[332860336,1721591981260,998.0,0.00025,110]
[332860337,1721592020984,500.0,0.00025,110]
[332860338,1721592041321,500.0,0.00025,110]
[332860343,1721592326604,171.8362645,5e-05,2]
[332860344,1721592380588,182.14056294,6.061e-05,2]
[332860401,1721592459019,413.9645047,7.347e-05,2]
[332860402,1721592459734,500.0,6.061e-05,2]
[332860403,1721592501693,413.9645047,7.347e-05,2]
[332860409,1721592549145,500.0,0.00025,110]
[332860437,1721592551885,500.0,0.00025,110]
[332860451,1721592571558,413.9645047,8.905e-05,2]
[332860458,1721592619414,500.0,0.00025,110]
[332860474,1721592632187,-883.13,9.181e-05,2]
[332860475,1721592632197,-168.59,0.00010625,2]
[332860476,1721592632207,-129.13005427,0.000107,2]
[332860477,1721592632219,-370.86994573,0.000107,2]
[332860478,1721592632228,-292.81,0.00010727,2]
[332860479,1721592632238,-169.56146874,0.000108,2]
[332860480,1721592632247,-2000.0,0.0001081,2]
[332860481,1721592632256,-1218.2278861,0.00010871,2]
[332860482,1721592632268,-659.4121139,0.00010871,2]
[332860483,1721592632279,-282.6689,0.000109,2]
[332860484,1721592632288,-496.89,0.00010958,2]
[332860485,1721592632299,-500.0,0.00010974,2]
[332860486,1721592632308,-727.51126652,0.00011,2]
[332860487,1721592632318,-150.0,0.00011001,2]
[332860488,1721592632327,-250.0,0.00011003,2]
[332860489,1721592632336,-250.0,0.00011038,2]
[332860490,1721592632346,-192.27,0.00011136,2]
[332860491,1721592632356,-420.03,0.000112,2]
[332860492,1721592632365,-839.54,0.000112,2]
[332860493,1721592632375,-1000.0,0.00011271,2]
[332860494,1721592632385,-838.71,0.00011373,2]
[332860495,1721592632394,-139.71333958,0.00011439,2]
[332860496,1721592632406,-1061.28666042,0.00011439,2]
[332860497,1721592632415,-966.54879936,0.00011439,2]
[332860498,1721592632436,-1795.35220064,0.00011439,2]
[332860499,1721592632445,-1018.688,0.00011439,2]
[332860500,1721592632455,-883.13,0.00011445,2]
[332860501,1721592632465,-1000.0,0.0001168,2]
[332860502,1721592632475,-2044.82979936,0.0001168,2]
[332860503,1721592632498,-1305.53734535,0.0001168,2]
[332860504,1721592632513,-359.16532702,0.0001168,2]
[332860527,1721592638121,-638.89389986,0.0001168,2]
[332860529,1721592638133,-2222.86975057,0.0001168,2]
[332860531,1721592638177,-2388.94041669,0.0001168,2]
[332860532,1721592638188,-306.18687373,0.0001168,2]
[332860533,1721592638199,-701.04556437,0.0001168,2]
[332860534,1721592638232,-1192.01828368,0.0001168,2]
[332860535,1721592638286,-965.47893929,0.0001168,2]
[332860536,1721592638341,-16256.26166135,0.0001168,2]
[332860537,1721592638353,-10682.56473873,0.0001168,2]
[332860538,1721592638362,-8494.70723638,0.0001168,2]
[332860539,1721592638373,-1918.70356362,0.0001168,2]
[332860540,1721592638383,-150.0,0.00011728,2]
[332860541,1721592638392,-150.0,0.00011728,2]
[332860542,1721592638403,-150.0,0.00011728,2]
[332860543,1721592638413,-354.0,0.00011728,2]
[332860544,1721592638422,-1253.0,0.00011728,2]
[332860545,1721592638432,-1648.0,0.00011728,2]
[332860546,1721592638442,-1829.0,0.00011728,2]
[332860548,1721592638451,-445.0,0.00011728,2]
[332860549,1721592638460,-178.972,0.00011728,2]
[332860551,1721592638470,-547.68634,0.0001178,2]
[332860553,1721592638479,-203.93691935,0.000118,2]
[332860555,1721592638491,-1000.0,0.000118,2]
[332860557,1721592638501,-173.06447734,0.000118,2]
[332860559,1721592638511,-162.79651003,0.000118,2]
[332860561,1721592638520,-500.0,0.00011805,2]
[332860563,1721592638530,-1403.84050483,0.0001185,2]
[332860565,1721592638540,-339.71701887,0.0001187,2]
[332860667,1721592640726,-2362.28298113,0.0001187,2]
[332860669,1721592640739,-777.76087033,0.00011883,4]
[332860671,1721592640752,-696.37678912,0.00011883,4]
[332860673,1721592640763,-443.23700073,0.00011883,4]
[332860675,1721592640777,-784.30225293,0.00011883,4]
[332860677,1721592640786,-150.0,0.0001189,2]
[332860679,1721592640795,-5283.10114279,0.000119,2]
[332860682,1721592640812,-2683.99341692,0.000119,2]
[332860684,1721592640824,-2707.0775484,0.000119,2]
[332860686,1721592640836,-46242.38890849,0.000119,2]
[332860688,1721592640847,-413.87503265,0.000119,2]
[332860690,1721592640858,-3455.58653241,0.000119,2]
[332860692,1721592640869,-5198.16634652,0.000119,2]
[332860694,1721592640880,-3027.95925375,0.000119,2]
[332860696,1721592640891,-337.3050151,0.000119,2]
[332860698,1721592640902,-3605.21604219,0.000119,2]
[332860701,1721592640913,-453.43715224,0.000119,2]
[332860703,1721592640924,-948.77295282,0.000119,2]
[332860705,1721592640935,-349.9,0.000119,2]
[332860933,1721592643303,-569.73,0.000119,2]
[332860937,1721592643315,-3039.885,0.000119,2]
[332860953,1721592643411,-577241.54238106,0.000119,2]
[332860955,1721592643423,-11837.3968,0.000119,2]
[332860957,1721592643435,-400.0,0.000119,2]
[332860961,1721592643467,-276.03969957,0.000119,2]
[332860968,1721592643523,-118052.48760997,0.000119,2]
[332860986,1721592643683,-35384.3295801,0.000119,2]
[332860988,1721592643694,-50436.83814242,0.000119,2]
[332860994,1721592643754,-1018.25971876,0.000119,2]
[332860997,1721592643768,-909.68869983,0.000119,2]
[332860999,1721592643783,-276.97099999,0.000119,2]
[332861177,1721592646221,-11075.30275092,0.000119,2]
[332861178,1721592646326,-4823.36786804,0.000119,2]
[332861222,1721592770707,500.0,0.00025,110]
[332861223,1721592791664,500.0,0.00024967,120]
[332861224,1721592940412,500.0,0.00025,110]
[332861225,1721593047215,861.92,8.793e-05,2]
[332861226,1721593142594,155.0,0.00010658,60]
[332861227,1721593230751,500.0,0.00025,110]
[332861228,1721593301007,500.0,0.00025,110]
[332861229,1721593342735,500.0,0.00025,110]
[332861230,1721593590567,500.0,0.00025,110]
[332861231,1721593596877,500.0,0.00025,110]
[332861245,1721593712202,2100.0,9.02e-05,2]
[332861247,1721593741448,500.0,0.00025,110]
[332861285,1721593763004,818.82,8.432e-05,2]
[332861289,1721593770608,500.0,0.00025,110]
[332861303,1721593832342,-300.0,9.965e-05,2]
[332861304,1721593832356,-526.29867666,9.966e-05,2]
[332861305,1721593832373,-20784.01749013,9.966e-05,2]
[332861306,1721593832386,-250.0,0.00010397,2]
[332861307,1721593832400,-159.11,0.00010419,2]
[332861308,1721593832413,-153.81,0.00010462,2]
[332861309,1721593832427,-159.11,0.00010471,2]
[332861310,1721593832440,-250.0,0.00010515,2]
[332861311,1721593832454,-4080.5,0.00010587,2]
[332861312,1721593832467,-185.52,0.0001059,2]
[332861313,1721593832486,-447.41788787,0.00010621,2]
[332861314,1721593832502,-552.58211213,0.00010621,2]
[332861315,1721593832517,-413.48075719,0.00010658,2]
[332861316,1721593832531,-351.12,0.00010658,2]
[332861317,1721593832543,-818.82,0.00010696,2]
[332861318,1721593832557,-150.0,0.00010793,2]
[332861319,1721593832570,-291.45103043,0.00010794,2]
[332861320,1721593832586,-111.23439428,0.00010794,2]
[332861321,1721593832599,-527.90970893,0.00010794,2]
[332861322,1721593832612,-1136.70475368,0.00010794,2]
[332861323,1721593832626,-492.21599629,0.00010794,2]
[332861324,1721593832639,-424.65234116,0.00010794,2]
[332861325,1721593832652,-574.18,0.00010794,2]
[332861326,1721593832666,-200.0,0.000109,3]
[332861328,1721593832678,-273.64632601,0.00010933,2]
[332861330,1721593832691,-1053.52,0.00010959,2]
[332861331,1721593832704,-150.0,0.00010959,2]
[332861332,1721593832716,-420.0,0.00010961,2]
[332861333,1721593832732,-185.57,0.00011,2]
[332861334,1721593832746,-500.0,0.00011,4]
[332861335,1721593832760,-700.0,0.000111,4]
[332861336,1721593832773,-38.66647965,0.00011105,2]
[332861339,1721593832788,-2564.27809117,0.00011105,2]
[332861341,1721593832804,-22686.14471205,0.00011105,2]
[332861342,1721593832817,-3399.71436587,0.00011105,2]
[332861343,1721593832830,-1500.0,0.00011105,2]
[332861344,1721593832843,-266.95796456,0.00011105,2]
[332861345,1721593832856,-164.16460495,0.00011105,2]
[332861346,1721593832868,-19663.15203905,0.00011105,2]
[332861347,1721593832881,-19463.49668432,0.00011186,2]
[332861348,1721593832897,-283.8100001,0.00011186,2]
[332861349,1721593832918,-5014.2493592,0.00011186,2]
[332861350,1721593832930,-5661.88619024,0.00011186,2]
[332861351,1721593832942,-492.92587255,0.00011186,2]
[332861352,1721593832955,-1000.0,0.000112,4]
[332861353,1721593832967,-1300.0,0.000113,4]
[332861354,1721593832983,-722.49604628,0.00011324,2]
[332861355,1721593832995,-200.0,0.000114,4]
[332861356,1721593833007,-3319.89069511,0.00011431,2]
[332861357,1721593833023,-641.43342479,0.00011431,2]
[332861358,1721593833039,-716.18874666,0.00011431,2]
[332861359,1721593833055,-470.74147464,0.00011431,2]
[332861360,1721593833070,-604.923475,0.00011431,2]
[332861361,1721593833086,-4526.59298829,0.00011431,2]
[332861362,1721593833100,-619.14994573,0.00011431,2]
[332861363,1721593833115,-412.61335126,0.00011431,2]
[332861388,1721593838902,-147.46589852,0.00011431,2]
[332861390,1721593838911,-132.98644661,0.000115,4]
[332861392,1721593838923,-67.01355339,0.000115,4]
[332861394,1721593838932,-356.93341906,0.00011525,2]
[332861396,1721593838944,-200.0,0.000116,4]
[332861398,1721593838954,-200.0,0.000117,4]
[332861400,1721593838963,-1819.0,0.00011738,2]
[332861402,1721593838972,-965.649,0.00011738,2]
[332861404,1721593838983,-153.81,0.00011769,2]
[332861406,1721593838993,-380.33774,0.0001178,2]
[332861408,1721593839002,-959.20007468,0.000118,2]
[332861410,1721593839011,-1000.0,0.000118,2]
[332861412,1721593839020,-14220.06096287,0.000118,2]
[332861415,1721593839036,-9420.28367297,0.000118,2]
[332861418,1721593839055,-690.03495152,0.000118,2]
[332861420,1721593839066,-3463.79992819,0.000118,2]
[332861550,1721593840354,-1374.11072168,0.000118,2]
[332861554,1721593840751,500.0,0.00025,110]
[332861555,1721593841145,-3687.73298594,0.000118,2]
[332861556,1721593841158,-704.39,0.000118,2]
[332861557,1721593841208,-684.69137303,0.000118,2]
[332861558,1721593841220,-4086.70381184,0.000118,2]
[332861559,1721593841270,-731.98419196,0.000118,2]
[332861560,1721593841279,-172.6576321,0.000118,2]
[332861561,1721593841289,-582.22460873,0.000118,2]
[332861562,1721593841300,-815.0,0.000118,4]
[332861563,1721593841309,-152.71599027,0.000118,2]
[332861564,1721593841318,-355.69,0.0001189,2]
[332861565,1721593841328,-529.74,0.0001189,2]
[332861566,1721593841337,-150.0,0.0001189,2]
[332861567,1721593841347,-420.03,0.0001189,2]
[332861568,1721593841357,-1113.93944268,0.00011899,3]
[332861569,1721593841366,-1986.82286026,0.000119,2]
[332861748,1721593843455,-8661.4259007,0.000119,2]
[332861751,1721593843467,-9858.86818663,0.000119,2]
[332861756,1721593843478,-802387.66466879,0.000119,2]
[332861765,1721593843521,-15392.39694035,0.000119,2]
[332861768,1721593843533,-2992.66511614,0.000119,2]
[332861771,1721593843544,-6812.47248928,0.000119,2]
[332861773,1721593843555,-500.0,0.000119,2]
[332861777,1721593843583,-346.47429074,0.000119,2]
[332861779,1721593843594,-705.59991999,0.000119,2]
[332861782,1721593843606,-2532.305768,0.000119,2]
[332861843,1721593844201,-295.4355325,0.000119,2]
[332861905,1721593844780,-379.82106195,0.000119,2]
[332861908,1721593844795,-2684.38668039,0.000119,2]
[332861944,1721593845804,-380.80188952,0.000119,2]
[332861945,1721593845922,-48425.2182104,0.000119,2]
[332862062,1721593847042,-150.0,0.00011728,2]
[332862065,1721593847052,-295.858,0.00011728,2]
[332862067,1721593847062,-2954.142,0.000119,2]
[332862070,1721593847073,-6775.73848486,0.000119,2]
[332862072,1721593847085,-948.90000057,0.000119,2]
[332862075,1721593847096,-20427.75872467,0.000119,2]
[332862096,1721593847480,-680.74,0.000119,2]
[332862097,1721593847494,-1043.3981522,0.000119,2]
[332862098,1721593847506,-1400.55359634,0.000119,2]
[332862099,1721593847517,-404.48230813,0.000119,2]
[332862100,1721593847529,-2015.1649756,0.000119,2]
[332862101,1721593847540,-356.82,0.000119,2]
[332862102,1721593847551,-824.964294,0.000119,2]
[332862103,1721593847563,-908.293,0.000119,2]
[332862104,1721593847574,-22113.18961374,0.000119,2]
[332862105,1721593847586,-578.12371714,0.000119,2]
[332862106,1721593847608,-861.89995876,0.000119,2]
[332862107,1721593847642,-2179.41794027,0.000119,2]
[332862108,1721593847670,-1753.85498398,0.000119,2]
[332862109,1721593847707,-900.64331755,0.000119,2]
[332862111,1721593847769,-2302.7006336,0.000119,2]
[332862112,1721593847794,-880.87500001,0.000119,2]
[332862113,1721593847807,-2517.97673226,0.000119,2]
[332862114,1721593847818,-1222.58142477,0.000119,2]
[332862115,1721593847829,-1754.97,0.000119,2]
[332862116,1721593847845,-564.5579866,0.000119,2]
[332862117,1721593847857,-15031.09902767,0.000119,2]
[332862118,1721593847868,-347.83,0.000119,2]
[332862119,1721593847893,-380.34838437,0.000119,2]
[332862120,1721593847918,-1530.01147596,0.000119,2]
[332862121,1721593847931,-726.20638618,0.000119,2]
[332862122,1721593847943,-2654.94895016,0.000119,2]
[332862123,1721593847955,-1185.57,0.000119,2]
[332862158,1721594170328,500.0,0.00025,110]
[332862159,1721594190822,500.0,0.00025,110]
[332862160,1721594230800,500.0,0.00025,110]
[332862161,1721594260362,500.0,0.00025,110]
[332862163,1721594541683,500.0,0.00025,110]
[332862164,1721594560374,10000.0,0.00025,110]
[332862166,1721594761251,500.0,0.00025,110]
[332862230,1721594978031,855.84,8.971e-05,2]
[332862250,1721595031525,-6542.33263078,9.966e-05,2]
[332862251,1721595031585,-9837.15331114,9.966e-05,2]
[332862252,1721595031803,-307.41295725,9.966e-05,2]
[332862253,1721595031815,-1450.0,9.966e-05,2]
[332862254,1721595031826,-3913.55995196,9.966e-05,2]
[332862255,1721595031913,-22.78619643,9.966e-05,2]
[332862256,1721595031922,-185.53,0.00010874,2]
[332862257,1721595031934,-209.62529456,0.00010874,2]
[332862258,1721595031946,-113.83510802,0.00010887,2]
[332862259,1721595031958,-1120.60013597,0.00010887,2]
[332862260,1721595031971,-328.21590955,0.00010887,2]
[332862261,1721595031986,-3086.50784966,0.00010887,2]
[332862262,1721595031997,-1699.67601483,0.00010887,2]
[332862263,1721595032080,-1421.0333,0.00010887,2]
[332862280,1721595037645,-1085.31168197,0.00010887,2]
[332862281,1721595037654,-128.59251899,0.00010887,2]
[332862282,1721595037706,-121.40748101,0.00010887,2]
[332862283,1721595037716,-550.12,0.00010887,2]
[332862284,1721595037727,-150.0,0.00010932,2]
[332862285,1721595037737,-250.0,0.00010958,2]
[332862286,1721595037747,-150.0,0.00010959,2]
[332862287,1721595037756,-845.92,0.00010959,2]
[332862288,1721595037766,-159.37746402,0.00011105,2]
[332862289,1721595037775,-186.36657613,0.00011105,2]
[332862290,1721595037786,-308.85879004,0.00011105,2]
[332862291,1721595037795,-151.57412305,0.00011105,2]
[332862292,1721595037807,-981.0552167,0.00011105,2]
[332862293,1721595037816,-108.98558329,0.00011105,2]
[332862294,1721595037827,-391.00441671,0.00011105,2]
[332862296,1721595037836,-1601.91907244,0.00011105,2]
[332862328,1721595038143,-3794.19877828,0.00011105,2]
[332862330,1721595038153,-233.5,0.00011118,2]
[332862332,1721595038163,-150.0,0.00011159,2]
[332862334,1721595038173,-455.45,0.0001116,2]
[332862337,1721595038184,-1000.0,0.00011204,2]
[332862339,1721595038193,-855.84,0.00011235,2]
[332862340,1721595038203,-420.03,0.0001145,2]
[332862341,1721595038212,-420.03,0.0001145,2]
[332862342,1721595038223,-420.03,0.0001145,2]
[332862343,1721595038233,-420.03,0.0001145,2]
[332862344,1721595038243,-420.03,0.0001145,2]
[332862345,1721595038252,-1117479.15559664,0.000115,2]
[332862437,1721595039736,-407.706,0.000115,2]
[332862439,1721595039749,-38289.13840336,0.000115,2]
[332862441,1721595039759,-150.0,0.00011701,2]
[332862443,1721595039768,-307.93771026,0.00011703,2]
[332862445,1721595039778,-1663.0,0.00011738,2]
[332862447,1721595039787,-362.0,0.00011738,2]
[332862449,1721595039796,-1829.0,0.00011738,2]
[332862451,1721595039806,-1253.0,0.00011738,2]
[332862453,1721595039815,-150.0,0.00011738,2]
[332862455,1721595039824,-450.0,0.00011738,2]
[332862457,1721595039833,-810.0,0.00011738,2]
[332862459,1721595039843,-445.0,0.00011738,2]
[332862461,1721595039852,-620.0,0.00011738,2]
[332862463,1721595039862,-550.0,0.00011738,2]
[332862465,1721595039871,-2382.0,0.00011738,2]
[332862467,1721595039880,-262.161,0.00011738,2]
[332862469,1721595039889,-151.904,0.00011738,2]
[332862471,1721595039898,-155.205,0.00011738,2]
[332862473,1721595039907,-162.449,0.00011738,2]
[332862475,1721595039916,-247.271,0.00011738,2]
[332862477,1721595039925,-170.948,0.00011738,2]
[332862479,1721595039935,-247.019,0.00011738,2]
[332862481,1721595039944,-901.2695,0.000118,2]
[332862483,1721595039953,-1000.0,0.000118,2]
[332862485,1721595039962,-330.07335395,0.000118,2]
[332862487,1721595039974,-501.43951147,0.000118,2]
[332862489,1721595039983,-1985.16127375,0.000118,2]
[332862491,1721595039993,-500.352,0.000118,2]
[332862493,1721595040003,-1010.0,0.000118,2]
[332862495,1721595040013,-214.25089341,0.000118,2]
[332862497,1721595040022,-409.97275602,0.000118,2]
[332862499,1721595040031,-190.43195591,0.000118,2]
[332862501,1721595040041,-500.0,0.00011804,2]
[332862503,1721595040051,-500.0,0.00011805,2]
[332862505,1721595040060,-196.43586911,0.0001185,2]
[332862507,1721595040069,-1000.0,0.00011875,2]
[332862509,1721595040079,-217.08,0.0001189,2]
[332862511,1721595040089,-300.0,0.0001189,2]
[332862513,1721595040098,-355.69,0.0001189,2]
[332862515,1721595040107,-355.69,0.0001189,2]
[332862516,1721595040116,-355.69,0.0001189,2]
[332862518,1721595040125,-6626.46977278,0.00011897,2]
[332862521,1721595040143,-150.0,0.00011726,2]
[332862523,1721595040152,-1840.85055072,0.00011897,2]
[332862525,1721595040161,-2632.64258079,0.00011897,2]
[332862527,1721595040172,-38981.98442281,0.00011897,2]
[332862529,1721595040182,-209.73197584,0.00011899,2]
[332862531,1721595040191,-5938.62489471,0.00011899,2]
[332862533,1721595040201,-740.03035469,0.00011899,2]
[332862535,1721595040210,-150.0,0.00011899,2]
[332862537,1721595040219,-22204.86076572,0.000119,2]
[332862540,1721595040238,-5787.64384932,0.000119,2]
[332862542,1721595040249,-298.36191093,0.000119,2]
[332862627,1721595041108,-245.86060635,0.0001178,2]
[332862629,1721595041118,-150.0,0.00011827,2]
[332862631,1721595041128,-1324.53630123,0.000119,2]
[332862635,1721595041165,-142513.39063544,0.000119,2]
[332862782,1721595042735,-298.22937655,0.00010874,2]
[332862784,1721595042745,-185.875,0.00011738,2]
[332862786,1721595042755,-260.608,0.00011738,2]
[332862788,1721595042764,-6745.97708579,0.000119,2]
[332862805,1721595042919,-2543.42086267,0.000119,2]
[332862808,1721595042931,-399800.87067658,0.000119,2]
[332862813,1721595042978,-5251.78288522,0.000119,2]
[332862820,1721595043033,-682.23,0.000119,2]
[332862822,1721595043045,-13172.04634356,0.000119,2]
[332863094,1721595045665,-152.73887486,0.00011899,2]
[332863097,1721595045675,-1277.54541642,0.000119,2]
[332863122,1721595045929,-6621.33860266,0.000119,2]
[332863125,1721595045942,-1268.7786,0.000119,2]
[332863127,1721595045957,-7493.13732954,0.000119,2]
[332863129,1721595045969,-1362.3081536,0.000119,2]
[332863131,1721595045982,-1673.18718658,0.000119,2]
[332863133,1721595045993,-16755.0,0.000119,2]
[332863522,1721595149825,150.5,0.0001189,30]
[332863523,1721595150277,150.5,0.0001189,30]
[332863525,1721595279842,197.0,0.0001189,30]
[332863526,1721595545663,874.13,8.812e-05,2]
[332863527,1721595643205,2993.74020377,8.812e-05,2]
[332863528,1721595777010,-1269.0,0.00010636,2]
[332863592,1721596213611,830.42,8.608e-05,2]
[332863604,1721596231804,-186.8,0.00010541,2]
[332863605,1721596231814,-250.0,0.00010583,2]
[332863606,1721596231823,-1027.37,0.00010609,2]
[332863607,1721596231833,-300.0,0.00010635,2]
[332863608,1721596231842,-412.41398176,0.00010636,2]
[332863609,1721596231852,-181.50980067,0.00010636,2]
[332863610,1721596231862,-300.23388085,0.00010636,2]
[332863611,1721596231871,-1429.20605777,0.00010636,2]
[332863612,1721596231883,-1572.82495648,0.00010636,2]
[332863613,1721596231894,-267.23393513,0.00010636,2]
[332863614,1721596231909,-2783.83701633,0.00010636,2]
[332863615,1721596231955,-1803.49340754,0.00010636,2]
[332863622,1721596237720,-3597.56620416,0.00010636,2]
[332863623,1721596237741,-44.16842259,0.00010636,2]
[332863624,1721596237751,-250.0,0.0001064,2]
[332863625,1721596237761,-1000.0,0.00010673,2]
[332863626,1721596237773,-520.40008741,0.00010773,2]
[332863627,1721596237843,-1846.50691259,0.00010773,2]
[332863628,1721596237853,-168.41,0.00010809,2]
[332863629,1721596237863,-830.42,0.00010872,2]
[332863630,1721596237873,-439.46122706,0.00010874,2]
[332863631,1721596237883,-354.94685319,0.00010874,2]
[332863632,1721596237892,-1136.94020699,0.00010874,2]
[332863633,1721596237902,-155.0,0.00010874,2]
[332863634,1721596237912,-1024.63553683,0.00010874,2]
[332863635,1721596237922,-1091.2439876,0.00010874,2]
[332863636,1721596237935,-176.09,0.00010874,2]
[332863637,1721596237946,-2519.21,0.00010959,2]
[332863638,1721596237955,-3133.07,0.0001101,2]
[332863639,1721596237966,-150.0,0.00011104,2]
[332863640,1721596237977,-264.09660197,0.00011105,2]
[332863641,1721596237987,-10332.05214681,0.00011105,2]
[332863642,1721596237998,-16921.5518962,0.00011105,2]
[332863643,1721596238008,-23170.11448789,0.00011431,2]
[332863644,1721596238021,-2883.84825415,0.00011431,2]
[332863645,1721596238034,-397.56493068,0.00011431,2]
[332863646,1721596238045,-3809.32092168,0.00011431,2]
[332863647,1721596238058,-300.11965555,0.00011431,2]
[332863648,1721596238070,-1522.57839701,0.00011431,2]
[332863649,1721596238081,-28445.57101361,0.00011431,2]
[332863651,1721596238093,-339.2348895,0.00011431,2]
[332863652,1721596238119,-4414.93242347,0.00011431,2]
[332863653,1721596238132,-516.31510695,0.00011431,2]
[332863736,1721596241021,-2842.29385452,0.00011431,2]
[332863737,1721596241032,-1107.68259837,0.00011431,2]
[332863738,1721596241048,-901.96727595,0.00011431,2]
[332863739,1721596241059,-1357.4,0.00011431,2]
[332863740,1721596241070,-7944.05619067,0.00011431,2]
[332863741,1721596241080,-309.30016259,0.00011623,2]
[332863742,1721596241089,-420.0,0.00011691,2]
[332863743,1721596241099,-3175.6556,0.000117,2]
[332863744,1721596241108,-15501.2049,0.000117,2]
[332863745,1721596241117,-29725.3872,0.000117,2]
[332863746,1721596241126,-5936.68994197,0.000117,2]
[332863747,1721596241144,-617.09217539,0.000117,2]
[332863748,1721596241156,-1023.25,0.000117,2]
[332863749,1721596241167,-439.10667098,0.000117,2]
[332863750,1721596241179,-500.0,0.000117,2]
[332863753,1721596241195,-502.62768369,0.000117,2]
[332863961,1721596242957,-1640.73672797,0.000117,2]
[332863964,1721596242967,-240.38379433,0.000117,2]
[332863967,1721596242978,-150.0,0.00011701,2]
[332863970,1721596242990,-240.38379431,0.00011725,2]
[332863973,1721596242999,-261.248,0.00011738,2]
[332863976,1721596243010,-206.254,0.00011738,2]
[332863979,1721596243019,-203.465,0.00011738,2]
[332863982,1721596243029,-169.554,0.00011738,2]
[332863985,1721596243039,-159.0,0.00011738,2]
[332863990,1721596243050,-240.38379431,0.0001175,2]